fUST/lending_fUST_20250501
["ID","MTS","AMOUNT","RATE_DAILY","PERIOD"]
[359550899,1746109846258,-400.0,0.0003041,5]
[359550900,1746109846269,-400.0,0.0003041,5]
[359550901,1746109846279,-400.0,0.0003041,5]
[359550902,1746109846289,-400.0,0.0003041,5]
[359550903,1746109846300,-400.0,0.0003041,5]
[359550904,1746109846310,-22725.98,0.0003041,5]
[359550905,1746109846320,-400.0,0.0003041,5]
[359550906,1746109846331,-1144.0,0.0003041,5]
[359550907,1746109846341,-400.0,0.0003041,5]
[359550908,1746109846351,-553.95,0.0003041,5]
[359550909,1746109846361,-400.0,0.0003041,5]
[359550910,1746109846372,-709.43,0.0003041,5]
[359550911,1746109846382,-400.0,0.0003041,5]
[359550912,1746109846393,-400.0,0.0003041,5]
[359550913,1746109846403,-316.844648,0.0003041,7]
[359550914,1746109846414,-400.0,0.0003041,5]
[359550915,1746109846425,-400.0,0.0003041,5]
[359550916,1746109846435,-316.844648,0.0003041,7]
[359550917,1746109846446,-400.0,0.0003041,5]
[359550918,1746109846456,-4719.51,0.0003041,5]
[359550919,1746109846466,-400.0,0.0003041,5]
[359550920,1746109846477,-424.85,0.0003041,5]
[359550921,1746109846487,-400.0,0.0003041,5]
[359550922,1746109846497,-400.0,0.0003041,5]
[359550923,1746109846508,-403.57706788,0.0003041,5]
[359550924,1746109846518,-664.88,0.0003041,5]
[359550925,1746109846529,-1103.63,0.0003041,5]
[359550926,1746109846539,-400.0,0.0003041,5]
[359550927,1746109846549,-825.71,0.0003041,5]
[359550928,1746109846559,-400.0,0.0003041,5]
[359550929,1746109846570,-410.07294606,0.0003041,5]
[359550930,1746109846580,-400.0,0.0003041,5]
[359550931,1746109846591,-1750.49,0.0003041,5]
[359550932,1746109846601,-400.0,0.0003041,5]
[359550933,1746109846611,-661.077001,0.0003041,7]
[359550934,1746109846623,-661.077001,0.0003041,7]
[359550935,1746109846633,-400.0,0.0003041,5]
[359550936,1746109846644,-661.077001,0.0003041,7]
[359550937,1746109846654,-661.077001,0.0003041,7]
[359550938,1746109846665,-6695.19,0.0003041,5]
[359550939,1746109846676,-400.0,0.0003041,5]
[359550940,1746109846686,-2044.21,0.0003041,5]
[359550941,1746109846696,-400.0,0.0003041,5]
[359550942,1746109846706,-158.695611,0.0003041,7]
[359550943,1746109846717,-158.695611,0.0003041,7]
[359550944,1746109846727,-534.26,0.0003041,5]
[359550945,1746109846738,-158.695611,0.0003041,7]
[359550946,1746109846751,-158.695611,0.0003041,7]
[359550947,1746109846760,-400.0,0.0003041,5]
[359550948,1746109846773,-523.84734182,0.0003041,5]
[359550949,1746109846786,-400.0,0.0003041,5]
[359550950,1746109846796,-1229.87,0.0003041,5]
[359550951,1746109846806,-1220.62,0.0003041,5]
[359550952,1746109846816,-400.0,0.0003041,5]
[359550953,1746109846828,-400.0,0.0003041,5]
[359550954,1746109846838,-854.6,0.0003041,5]
[359550955,1746109846848,-400.0,0.0003041,5]
[359550956,1746109846858,-530.87,0.0003041,5]
[359550957,1746109846869,-400.0,0.0003041,5]
[359550958,1746109846879,-400.0,0.0003041,5]
[359550959,1746109846889,-207.84872266,0.0003041,5]
[359550960,1746109846899,-4771.91,0.0003041,5]
[359550961,1746109846910,-400.0,0.0003041,5]
[359550962,1746109846920,-400.0,0.0003041,5]
[359550963,1746109846930,-400.0,0.0003041,5]
[359550964,1746109846940,-400.0,0.0003041,5]
[359550965,1746109846950,-182.07995741,0.0003041,7]
[359550966,1746109846960,-400.0,0.0003041,5]
[359550967,1746109846970,-400.0,0.0003041,5]
[359550968,1746109846991,-400.0,0.0003041,5]
[359550969,1746109847002,-151.0,0.0003041,7]
[359550970,1746109847013,-151.0,0.0003041,7]
[359550971,1746109847024,-1711.97,0.0003041,5]
[359550972,1746109847035,-400.0,0.0003041,5]
[359550973,1746109847047,-279.70452544,0.0003041,5]
[359550974,1746109847057,-400.0,0.0003041,5]
[359550975,1746109847068,-400.0,0.0003041,5]
[359550976,1746109847079,-593.05,0.0003041,5]
[359550977,1746109847091,-400.0,0.0003041,5]
[359550978,1746109847102,-2496.38,0.0003041,5]
[359550979,1746109847113,-400.0,0.0003041,5]
[359550980,1746109847124,-400.0,0.0003041,5]
[359550981,1746109847135,-1900.16,0.0003041,5]
[359550982,1746109847146,-400.0,0.0003041,5]
[359550983,1746109847157,-667.31,0.0003041,5]
[359550984,1746109847168,-400.0,0.0003041,5]
[359550985,1746109847178,-400.0,0.0003041,5]
[359550986,1746109847189,-3366.96,0.0003041,5]
[359550987,1746109847200,-400.0,0.0003041,5]
[359550988,1746109847210,-541.04,0.0003041,5]
[359550989,1746109847221,-400.0,0.0003041,5]
[359550990,1746109847231,-400.0,0.0003041,5]
[359550991,1746109847242,-400.0,0.0003041,5]
[359550992,1746109847252,-648.99,0.0003041,5]
[359550993,1746109847263,-1668.26,0.0003041,5]
[359550994,1746109847274,-402.06268686,0.0003041,5]
[359550995,1746109847286,-676.82,0.0003041,5]
[359550996,1746109847297,-793.15,0.0003041,5]
[359550997,1746109847308,-400.0,0.0003041,5]
[359550998,1746109847319,-400.0,0.0003041,5]
[359550999,1746109847330,-400.0,0.0003041,5]
[359551000,1746109847341,-791.15,0.0003041,5]
[359551001,1746109847353,-715.05,0.0003041,5]
[359551002,1746109847364,-400.0,0.0003041,5]
[359551003,1746109847375,-400.0,0.0003041,5]
[359551004,1746109847386,-593.63,0.0003041,5]
[359551005,1746109847399,-400.0,0.0003041,5]
[359551006,1746109847410,-400.0,0.0003041,5]
[359551007,1746109847715,-650.93,0.0003041,5]
[359551008,1746109847727,-400.0,0.0003041,5]
[359551009,1746109847737,-365.9755145,0.0003041,5]
[359551010,1746109847753,-307.62635241,0.0003041,5]
[359551011,1746109847763,-400.0,0.0003041,5]
[359551012,1746109847773,-400.0,0.0003041,5]
[359551013,1746109847786,-400.0,0.0003041,5]
[359551014,1746109847795,-2050.5,0.0003041,5]
[359551015,1746109847805,-400.0,0.0003041,5]
[359551016,1746109847815,-497.32808256,0.0003041,5]
[359551017,1746109847827,-892.73,0.0003041,5]
[359551018,1746109847838,-400.0,0.0003041,5]
[359551019,1746109847848,-2622.97,0.0003041,5]
[359551020,1746109847858,-1258.08,0.0003041,5]
[359551021,1746109847868,-1163.03,0.0003041,5]
[359551022,1746109847878,-400.0,0.0003041,5]
[359551023,1746109847887,-500.95,0.0003041,5]
[359551024,1746109847897,-400.0,0.0003041,5]
[359551025,1746109847907,-621.53,0.0003041,5]
[359551026,1746109847917,-500.0,0.0003041,5]
[359551027,1746109847929,-1130.64,0.0003041,5]
[359551028,1746109847939,-400.0,0.0003041,5]
[359551029,1746109847950,-514.57116597,0.0003041,5]
[359551030,1746109847960,-680.73,0.0003041,5]
[359551031,1746109847971,-1151.52,0.0003041,5]
[359551032,1746109847982,-840.96,0.0003041,5]
[359551033,1746109847992,-1500.87,0.0003041,5]
[359551034,1746109848001,-547.34,0.0003041,5]
[359551035,1746109848011,-400.0,0.0003041,5]
[359551036,1746109848021,-501.35102376,0.0003041,5]
[359551037,1746109848030,-400.0,0.0003041,5]
[359551038,1746109848040,-400.0,0.0003041,5]
[359551039,1746109848049,-400.0,0.0003041,5]
[359551040,1746109848060,-5258.92,0.0003041,2]
[359551041,1746109848070,-601.79,0.0003041,5]
[359551042,1746109848079,-1366.99,0.0003041,5]
[359551043,1746109848089,-400.0,0.0003041,5]
[359551044,1746109848099,-400.0,0.0003041,5]
[359551045,1746109848109,-320.90339566,0.0003041,5]
[359551046,1746109848119,-400.0,0.0003041,5]
[359551047,1746109848128,-400.0,0.0003041,5]
[359551048,1746109848138,-570.2,0.0003041,5]
[359551049,1746109848148,-910.79,0.0003041,5]
[359551050,1746109848159,-400.0,0.0003041,5]
[359551051,1746109848169,-400.0,0.0003041,5]
[359551052,1746109848180,-400.0,0.0003041,5]
[359551053,1746109848190,-187.508528,0.0003041,7]
[359551054,1746109848201,-187.508528,0.0003041,7]
[359551055,1746109848211,-502.15505687,0.0003041,5]
[359551056,1746109848221,-582.04,0.0003041,5]
[359551057,1746109848232,-1608.22,0.0003041,5]
[359551058,1746109848242,-375.342705,0.0003041,7]
[359551059,1746109848252,-400.0,0.0003041,5]
[359551060,1746109848262,-375.342705,0.0003041,7]
[359551061,1746109848273,-508.07179248,0.0003041,5]
[359551062,1746109848283,-187.508528,0.0003041,7]
[359551063,1746109848293,-400.0,0.0003041,5]
[359551064,1746109848303,-187.508528,0.0003041,7]
[359551065,1746109848312,-400.0,0.0003041,5]
[359551066,1746109848321,-400.0,0.0003041,5]
[359551067,1746109848331,-375.342705,0.0003041,7]
[359551068,1746109848340,-375.342705,0.0003041,7]
[359551069,1746109848350,-514.99951481,0.0003041,5]
[359551070,1746109848360,-593.93,0.0003041,5]
[359551071,1746109848375,-455.56104619,0.0003041,5]
[359551072,1746109848385,-1540.62,0.0003041,5]
[359551073,1746109848395,-400.0,0.0003041,5]
[359551074,1746109848405,-400.0,0.0003041,5]
[359551075,1746109848414,-3296.52421456,0.00030417,22]
[359551076,1746109848425,-500.0,0.00030473,5]
[359551077,1746109848435,-500.0,0.00030473,5]
[359551078,1746109848444,-504.31948398,0.00030473,5]
[359551079,1746109848454,-500.0,0.00030473,5]
[359551080,1746109848463,-500.0,0.00030473,5]
[359551081,1746109848473,-1000.0,0.00030479,5]
[359551082,1746109848483,-1000.0,0.00030479,5]
[359551083,1746109848493,-1000.0,0.00030479,5]
[359551084,1746109848503,-1000.0,0.00030479,5]
[359551085,1746109848513,-1000.0,0.00030479,5]
[359551086,1746109848523,-503.9234981,0.00030479,5]
[359551087,1746109848533,-301.518159,0.00030479,5]
[359551088,1746109848543,-1000.0,0.00030479,5]
[359551089,1746109848553,-1000.0,0.00030479,5]
[359551090,1746109848563,-3808.6803863,0.00030516,2]
[359551091,1746109848572,-500.0,0.00030673,5]
[359551092,1746109848582,-500.0,0.00030673,5]
[359551093,1746109848592,-500.0,0.00030673,5]
[359551094,1746109848601,-150.0,0.00030673,5]
[359551095,1746109848611,-151.0,0.00030673,7]
[359551096,1746109848620,-375.342705,0.00030673,7]
[359551097,1746109848629,-375.342705,0.00030673,7]
[359551098,1746109848639,-151.0,0.00030674,7]
[359551099,1746109848649,-151.0,0.00030674,7]
[359551100,1746109848658,-151.0,0.00030674,7]
[359551101,1746109848667,-151.0,0.00030674,7]
[359551102,1746109848677,-179.623939,0.00030674,7]
[359551103,1746109848687,-179.623939,0.00030674,7]
[359551104,1746109848696,-292.688111,0.00030674,7]
[359551105,1746109848706,-292.688111,0.00030674,7]
[359551106,1746109848716,-661.077001,0.00030674,7]
[359551107,1746109848725,-661.077001,0.00030674,7]
[359551108,1746109848734,-187.508528,0.00030674,7]
[359551109,1746109848745,-187.508528,0.00030674,7]
[359551110,1746109848757,-500.0,0.00030683,2]
[359551111,1746109848767,-406.8437366,0.00030683,2]
[359551112,1746109848779,-1118.77,0.00030683,5]
[359551113,1746109848791,-1118.77,0.00030683,5]
[359551114,1746109848801,-1118.77,0.00030683,5]
[359551115,1746109848811,-406.10020127,0.00030684,5]
[359551116,1746109848820,-400.0,0.00030684,5]
[359551117,1746109848832,-313.34885484,0.00030684,5]
[359551118,1746109848842,-400.0,0.00030684,5]
[359551119,1746109848852,-400.0,0.00030684,5]
[359551120,1746109848862,-400.0,0.00030684,5]
[359551121,1746109848872,-505.28538744,0.00030684,5]
[359551122,1746109848882,-400.0,0.00030684,5]
[359551123,1746109848892,-400.0,0.00030684,5]
[359551124,1746109848901,-510.05265774,0.00030684,5]
[359551125,1746109848911,-244.21471632,0.00030684,5]
[359551126,1746109848921,-510.3831888,0.00030684,5]
[359551127,1746109848931,-400.0,0.00030684,5]
[359551128,1746109848941,-400.0,0.00030684,5]
[359551129,1746109848951,-400.0,0.00030684,5]
[359551130,1746109848961,-400.0,0.00030684,5]
[359551131,1746109848971,-400.0,0.00030684,5]
[359551132,1746109848981,-500.0,0.00030684,5]
[359551133,1746109848992,-701.43,0.00030684,5]
[359551134,1746109849002,-400.0,0.00030684,5]
[359551135,1746109849012,-288.54923115,0.00030684,5]
[359551136,1746109849022,-400.0,0.00030684,5]
[359551137,1746109849032,-400.0,0.00030684,5]
[359551138,1746109849042,-489.08307338,0.00030684,5]
[359551139,1746109849052,-504.20975861,0.00030684,5]
[359551140,1746109849062,-400.0,0.00030684,5]
[359551141,1746109849072,-588.02,0.00030684,5]
[359551142,1746109849082,-511.03630744,0.00030684,5]
[359551143,1746109849092,-400.0,0.00030684,5]
[359551144,1746109849102,-287.3360883,0.00030684,5]
[359551145,1746109849111,-400.0,0.00030684,5]
[359551146,1746109849121,-400.0,0.00030684,5]
[359551147,1746109849131,-400.0,0.00030684,5]
[359551148,1746109849141,-204.40664857,0.00030684,5]
[359551149,1746109849151,-400.0,0.00030684,5]
[359551150,1746109849160,-400.0,0.00030684,5]
[359551151,1746109849170,-400.0,0.00030684,5]
[359551152,1746109849180,-400.0,0.00030684,5]
[359551153,1746109849190,-400.0,0.00030684,5]
[359551154,1746109849200,-400.0,0.00030684,5]
[359551155,1746109849210,-400.0,0.00030684,5]
[359551156,1746109849220,-400.0,0.00030684,5]
[359551157,1746109849229,-501.5967277,0.00030684,5]
[359551158,1746109849239,-400.0,0.00030684,5]
[359551159,1746109849249,-509.09113005,0.00030684,5]
[359551160,1746109849259,-902.03,0.00030684,5]
[359551161,1746109849269,-458.92,0.00030684,5]
[359551162,1746109849280,-249.50127115,0.00030684,5]
[359551163,1746109849291,-400.0,0.00030684,5]
[359551164,1746109849301,-400.0,0.00030684,5]
[359551165,1746109849311,-400.0,0.00030684,5]
[359551166,1746109849322,-400.0,0.00030684,5]
[359551167,1746109849333,-491.82,0.00030684,5]
[359551168,1746109849343,-400.0,0.00030684,5]
[359551169,1746109849353,-400.70526772,0.00030684,5]
[359551170,1746109849364,-400.0,0.00030684,5]
[359551171,1746109849374,-400.0,0.00030684,5]
[359551172,1746109849385,-724.95,0.00030684,5]
[359551173,1746109849395,-400.0,0.00030684,5]
[359551174,1746109849405,-400.0,0.00030684,2]
[359551175,1746109849415,-400.0,0.00030684,5]
[359551176,1746109849425,-530.15,0.00030684,5]
[359551177,1746109849435,-400.0,0.00030684,5]
[359551178,1746109849444,-599.32,0.00030684,5]
[359551179,1746109849454,-400.0,0.00030684,5]
[359551180,1746109849463,-400.0,0.00030684,5]
[359551181,1746109849473,-400.0,0.00030684,5]
[359551182,1746109849483,-400.0,0.00030684,5]
[359551183,1746109849492,-400.0,0.00030684,5]
[359551184,1746109849502,-400.0,0.00030684,5]
[359551185,1746109849511,-400.0,0.00030684,5]
[359551186,1746109849521,-711.11,0.00030684,5]
[359551187,1746109849530,-400.0,0.00030684,5]
[359551188,1746109849541,-400.0,0.00030684,5]
[359551189,1746109849550,-400.0,0.00030684,5]
[359551190,1746109849560,-1502.7,0.00030684,5]
[359551191,1746109849569,-400.0,0.00030684,5]
[359551192,1746109849578,-400.0,0.00030684,5]
[359551193,1746109849588,-400.0,0.00030684,5]
[359551194,1746109849597,-400.0,0.00030684,5]
[359551195,1746109849606,-400.0,0.00030684,5]
[359551196,1746109849617,-400.0,0.00030684,5]
[359551197,1746109849627,-400.0,0.00030684,5]
[359551198,1746109849636,-400.0,0.00030684,5]
[359551199,1746109849645,-400.0,0.00030684,5]
[359551200,1746109849655,-400.0,0.00030684,5]
[359551201,1746109849664,-400.0,0.00030684,5]
[359551202,1746109849674,-400.0,0.00030684,5]
[359551203,1746109849684,-896.85,0.00030684,5]
[359551204,1746109849694,-400.0,0.00030684,5]
[359551205,1746109849703,-400.0,0.00030684,5]
[359551206,1746109849713,-599.64,0.00030684,5]
[359551207,1746109849723,-1268.33,0.00030684,5]
[359551208,1746109849732,-1132.84,0.00030684,5]
[359551209,1746109849741,-400.0,0.00030684,5]
[359551210,1746109849753,-400.0,0.00030684,5]
[359551211,1746109849763,-400.0,0.00030684,5]
[359551212,1746109849773,-400.0,0.00030684,5]
[359551213,1746109849783,-400.0,0.00030684,5]
[359551214,1746109849793,-400.0,0.00030684,5]
[359551215,1746109849803,-400.0,0.00030684,5]
[359551216,1746109849812,-400.0,0.00030684,5]
[359551217,1746109849823,-151.0,0.00030684,7]
[359551218,1746109849832,-889.06,0.00030684,5]
[359551219,1746109849842,-151.0,0.00030684,7]
[359551220,1746109849851,-151.0,0.00030684,7]
[359551221,1746109849861,-306.66251692,0.00030684,5]
[359551222,1746109849872,-400.0,0.00030684,5]
[359551223,1746109849882,-400.0,0.00030684,5]
[359551224,1746109849892,-940.91,0.00030684,5]
[359551225,1746109849903,-400.0,0.00030684,5]
[359551226,1746109849913,-400.0,0.00030684,5]
[359551227,1746109849923,-400.0,0.00030684,5]
[359551228,1746109849933,-400.0,0.00030684,5]
[359551229,1746109849942,-2047.54,0.00030684,5]
[359551230,1746109849951,-400.0,0.00030684,5]
[359551231,1746109849961,-400.0,0.00030684,5]
[359551232,1746109849970,-400.0,0.00030684,5]
[359551233,1746109849979,-962.12,0.00030684,5]
[359551234,1746109849989,-400.0,0.00030684,5]
[359551235,1746109849999,-970.7,0.00030684,5]
[359551236,1746109850009,-400.0,0.00030684,5]
[359551237,1746109850018,-576.8,0.00030684,5]
[359551238,1746109850027,-400.0,0.00030684,5]
[359551239,1746109850037,-400.0,0.00030684,5]
[359551240,1746109850047,-652.72,0.00030684,5]
[359551241,1746109850056,-400.0,0.00030684,5]
[359551242,1746109850066,-778.87,0.00030684,5]
[359551243,1746109850076,-400.0,0.00030684,5]
[359551244,1746109850086,-735.95,0.00030684,5]
[359551245,1746109850143,-400.0,0.00030684,5]
[359551246,1746109850153,-400.0,0.00030684,5]
[359551247,1746109850163,-400.0,0.00030684,5]
[359551248,1746109850173,-592.42,0.00030684,5]
[359551249,1746109850183,-400.0,0.00030684,5]
[359551250,1746109850192,-400.0,0.00030684,5]
[359551251,1746109850202,-400.0,0.00030684,5]
[359551252,1746109850212,-2269.42,0.00030684,5]
[359551253,1746109850221,-400.0,0.00030684,5]
[359551254,1746109850231,-400.0,0.00030684,5]
[359551255,1746109850240,-368.8803964,0.00030684,5]
[359551256,1746109850250,-400.0,0.00030684,5]
[359551257,1746109850260,-536.42,0.00030684,5]
[359551258,1746109850269,-402.84430598,0.00030684,5]
[359551259,1746109850279,-400.0,0.00030684,5]
[359551260,1746109850288,-400.0,0.00030684,5]
[359551261,1746109850298,-400.0,0.00030684,5]
[359551262,1746109850307,-292.688111,0.00030684,7]
[359551263,1746109850317,-500.0,0.00030684,5]
[359551264,1746109850326,-292.688111,0.00030684,7]
[359551265,1746109850335,-437.72,0.00030684,5]
[359551266,1746109850345,-400.0,0.00030684,5]
[359551267,1746109850355,-419.67879142,0.00030684,5]
[359551268,1746109850364,-400.0,0.00030684,5]
[359551269,1746109850374,-400.0,0.00030684,5]
[359551270,1746109850384,-400.0,0.00030684,5]
[359551271,1746109850393,-400.0,0.00030684,5]
[359551272,1746109850403,-22725.98,0.00030684,5]
[359551273,1746109850412,-400.0,0.00030684,5]
[359551274,1746109850421,-1144.0,0.00030684,5]
[359551275,1746109850431,-400.0,0.00030684,5]
[359551276,1746109850440,-553.95,0.00030684,5]
[359551277,1746109850449,-400.0,0.00030684,5]
[359551278,1746109850459,-709.43,0.00030684,5]
[359551279,1746109850468,-400.0,0.00030684,5]
[359551280,1746109850478,-203.9210466,0.00030684,5]
[359551281,1746109850488,-316.844648,0.00030684,7]
[359551282,1746109850498,-316.844648,0.00030684,7]
[359551283,1746109850507,-400.0,0.00030684,5]
[359551284,1746109850517,-400.0,0.00030684,5]
[359551285,1746109850527,-316.844648,0.00030684,7]
[359551286,1746109850536,-316.844648,0.00030684,7]
[359551287,1746109850546,-187.78015778,0.00030684,5]
[359551288,1746109850556,-4719.51,0.00030684,5]
[359551289,1746109850565,-400.0,0.00030684,5]
[359551290,1746109850574,-424.85,0.00030684,5]
[359551291,1746109850584,-242.91216363,0.00030684,5]
[359551292,1746109850593,-400.0,0.00030684,5]
[359551293,1746109850603,-664.88,0.00030684,5]
[359551294,1746109850612,-1103.63,0.00030684,5]
[359551295,1746109850621,-400.0,0.00030684,5]
[359551296,1746109850630,-825.71,0.00030684,5]
[359551297,1746109850639,-400.0,0.00030684,5]
[359551298,1746109850650,-400.0,0.00030684,5]
[359551299,1746109850659,-1750.49,0.00030684,5]
[359551300,1746109850668,-400.0,0.00030684,5]
[359551301,1746109850678,-661.077001,0.00030684,7]
[359551302,1746109850687,-661.077001,0.00030684,7]
[359551303,1746109850696,-400.0,0.00030684,5]
[359551304,1746109850706,-400.0,0.00030684,5]
[359551305,1746109850715,-6695.19,0.00030684,5]
[359551306,1746109850724,-661.077001,0.00030684,7]
[359551307,1746109850733,-661.077001,0.00030684,7]
[359551308,1746109850743,-2044.21,0.00030684,5]
[359551309,1746109850757,-400.0,0.00030684,5]
[359551310,1746109850767,-158.695611,0.00030684,7]
[359551311,1746109850776,-158.695611,0.00030684,7]
[359551312,1746109850786,-534.26,0.00030684,5]
[359551313,1746109850795,-158.695611,0.00030684,7]
[359551314,1746109850805,-158.695611,0.00030684,7]
[359551315,1746109850814,-400.0,0.00030684,5]
[359551316,1746109850823,-400.0,0.00030684,5]
[359551317,1746109850834,-1229.87,0.00030684,5]
[359551318,1746109850843,-1220.62,0.00030684,5]
[359551319,1746109850853,-400.0,0.00030684,5]
[359551320,1746109850862,-400.0,0.00030684,5]
[359551321,1746109850872,-854.6,0.00030684,5]
[359551322,1746109850882,-345.00126282,0.00030684,5]
[359551323,1746109850891,-530.87,0.00030684,5]
[359551324,1746109850901,-400.0,0.00030684,5]
[359551325,1746109850911,-400.0,0.00030684,5]
[359551326,1746109850920,-4771.91,0.00030684,5]
[359551327,1746109850930,-400.0,0.00030684,5]
[359551328,1746109850940,-336.86423308,0.00030684,5]
[359551329,1746109850949,-400.0,0.00030684,5]
[359551330,1746109850958,-400.0,0.00030684,5]
[359551331,1746109850967,-400.0,0.00030684,5]
[359551332,1746109850977,-400.0,0.00030684,5]
[359551333,1746109850987,-400.0,0.00030684,5]
[359551334,1746109850996,-151.0,0.00030684,7]
[359551335,1746109851006,-151.0,0.00030684,7]
[359551336,1746109851014,-1711.97,0.00030684,5]
[359551337,1746109851023,-400.0,0.00030684,5]
[359551338,1746109851033,-345.68583147,0.00030684,5]
[359551339,1746109851042,-400.0,0.00030684,5]
[359551340,1746109851051,-593.05,0.00030684,5]
[359551341,1746109851061,-400.0,0.00030684,5]
[359551342,1746109851070,-2496.38,0.00030684,5]
[359551343,1746109851079,-400.0,0.00030684,5]
[359551344,1746109851089,-400.0,0.00030684,5]
[359551345,1746109851099,-1900.16,0.00030684,5]
[359551346,1746109851108,-400.0,0.00030684,5]
[359551347,1746109851119,-667.31,0.00030684,5]
[359551348,1746109851128,-400.0,0.00030684,5]
[359551349,1746109851138,-400.0,0.00030684,5]
[359551350,1746109851147,-3366.96,0.00030684,5]
[359551351,1746109851157,-400.0,0.00030684,5]
[359551352,1746109851166,-541.04,0.00030684,5]
[359551353,1746109851176,-400.0,0.00030684,5]
[359551354,1746109851186,-400.0,0.00030684,5]
[359551355,1746109851195,-400.0,0.00030684,5]
[359551356,1746109851205,-648.99,0.00030684,5]
[359551357,1746109851214,-1668.26,0.00030684,5]
[359551358,1746109851224,-676.82,0.00030684,5]
[359551359,1746109851234,-394.85629784,0.00030684,5]
[359551360,1746109853046,-400.0,0.00030136,5]
[359551361,1746109853057,-400.0,0.00030136,5]
[359551362,1746109853067,-507.29,0.00030136,5]
[359551363,1746109853078,-400.0,0.0003041,5]
[359551364,1746109853087,-400.0,0.0003041,5]
[359551365,1746109853096,-400.0,0.0003041,5]
[359551366,1746109853106,-507.29,0.0003041,5]
[359551367,1746109853116,-398.29370216,0.00030684,5]
[359551368,1746109853126,-400.0,0.00030684,5]
[359551369,1746109853136,-400.0,0.00030684,5]
[359551370,1746109853146,-105.90837884,0.00030684,5]
[359551371,1746109853302,-841.10298755,0.00025068,2]
[359551372,1746109853315,-294.09162116,0.00030684,5]
[359551373,1746109853325,-451.03929127,0.00030684,5]
[359551417,1746109956283,-992.0,0.0002112,2]
[359551419,1746110092299,-245.72976436,0.0002102,2]
[359551420,1746110092323,-83.27023564,0.00021118,2]
[359551421,1746110103943,-157.99475751,0.00018,2]
[359551432,1746110898983,-31.27173081,0.00018,2]
[359551433,1746110899008,-120.72826919,0.00019018,2]
[359551434,1746110904828,-341.90231745,0.00019018,2]
[359551438,1746110963105,-8.0,0.0002112,2]
[359551439,1746110963134,-462.63058664,0.00024018,2]
[359551440,1746110963161,-160.0,0.00025242,2]
[359551441,1746110963186,-182.07995741,0.00025242,2]
[359551442,1746110963212,-160.0,0.00025242,2]
[359551443,1746110963236,-364.17626999,0.00025242,2]
[359551453,1746111032114,-160.0,0.00025242,2]
[359551454,1746111032127,-417.21310201,0.00025242,2]
[359551455,1746111032140,-300.0,0.00025725,2]
[359551456,1746111032150,-412.0,0.00025725,2]
[359551457,1746111032161,-300.0,0.00025725,2]
[359551458,1746111032173,-500.0,0.00025726,2]
[359551459,1746111032183,-500.0,0.00025726,2]
[359551460,1746111032194,-500.0,0.00025726,2]
[359551461,1746111032204,-500.0,0.00025726,2]
[359551462,1746111032215,-500.0,0.00025726,2]
[359551463,1746111032225,-500.0,0.00025726,2]
[359551464,1746111032235,-406.92463751,0.00025726,2]